fUSD/lending_fUSD_20240125
["ID","MTS","AMOUNT","RATE_DAILY","PERIOD"]
[312663120,1706141492789,-500.0,0.00050684,31]
[312663121,1706141492798,-250.0,0.00050684,31]
[312663122,1706141492808,-500.0,0.00050684,31]
[312663123,1706141492817,-500.0,0.00050684,31]
[312663124,1706141492826,-500.0,0.00050684,31]
[312663125,1706141492835,-500.0,0.00050684,31]
[312663126,1706141492845,-500.0,0.00050684,31]
[312663127,1706141492854,-500.0,0.00050684,31]
[312663128,1706141492864,-500.0,0.00050684,31]
[312663129,1706141492875,-500.0,0.00050684,31]
[312663130,1706141492884,-500.0,0.00050684,31]
[312663131,1706141492894,-500.0,0.00050684,31]
[312663132,1706141492903,-500.0,0.00050684,31]
[312663133,1706141492913,-500.0,0.00050684,31]
[312663134,1706141492923,-569.3,0.00050684,31]
[312663135,1706141492933,-547.01,0.00050684,31]
[312663136,1706141492943,-478.72884394,0.00050684,30]
[312663137,1706141492952,-500.0,0.00050684,31]
[312663138,1706141492962,-500.0,0.00050684,31]
[312663139,1706141492972,-500.0,0.00050684,31]
[312663140,1706141492981,-500.0,0.00050684,31]
[312663141,1706141492991,-510.64,0.00050684,31]
[312663142,1706141493000,-500.0,0.00050684,31]
[312663143,1706141493010,-1000.0,0.00050684,7]
[312663144,1706141493019,-500.0,0.00050684,10]
[312663145,1706141493028,-500.0,0.00050684,31]
[312663146,1706141493038,-500.0,0.00050684,31]
[312663147,1706141493047,-500.0,0.00050684,31]
[312663148,1706141493056,-500.0,0.00050684,31]
[312663149,1706141493067,-500.0,0.00050684,31]
[312663150,1706141493077,-500.0,0.00050684,31]
[312663151,1706141493086,-754.82,0.00050684,31]
[312663152,1706141493096,-500.0,0.00050684,31]
[312663153,1706141493105,-500.0,0.00050684,31]
[312663154,1706141493115,-500.0,0.00050684,31]
[312663155,1706141493124,-917.61,0.00050684,31]
[312663156,1706141493134,-500.0,0.00050684,31]
[312663157,1706141493143,-500.0,0.00050684,2]
[312663158,1706141493152,-500.0,0.00050684,31]
[312663159,1706141493162,-500.0,0.00050684,31]
[312663160,1706141493171,-500.0,0.00050684,31]
[312663161,1706141493181,-665.93,0.00050684,31]
[312663162,1706141493191,-702.69,0.00050684,31]
[312663163,1706141493201,-500.0,0.00050684,31]
[312663164,1706141493211,-500.0,0.00050684,31]
[312663165,1706141493221,-500.0,0.00050684,31]
[312663166,1706141493230,-619.19,0.00050684,31]
[312663167,1706141493240,-953.39,0.00050684,31]
[312663168,1706141493250,-500.0,0.00050684,2]
[312663169,1706141493260,-500.0,0.00050684,31]
[312663170,1706141493269,-500.0,0.00050684,31]
[312663171,1706141493281,-500.0,0.00050684,31]
[312663172,1706141493291,-500.0,0.00050684,31]
[312663173,1706141493301,-500.0,0.00050684,31]
[312663174,1706141493310,-500.0,0.00050684,31]
[312663175,1706141493321,-500.0,0.00050684,31]
[312663176,1706141493554,-500.0,0.00050684,31]
[312663177,1706141493564,-500.0,0.00050684,31]
[312663178,1706141493575,-500.0,0.00050684,31]
[312663179,1706141493584,-500.0,0.00050684,31]
[312663180,1706141493593,-500.0,0.00050684,31]
[312663181,1706141493602,-523.13,0.00050684,31]
[312663182,1706141493611,-500.0,0.00050684,31]
[312663183,1706141493621,-500.0,0.00050684,31]
[312663184,1706141493630,-500.0,0.00050684,31]
[312663185,1706141493639,-500.0,0.00050684,31]
[312663186,1706141493649,-500.0,0.00050684,31]
[312663187,1706141493658,-500.0,0.00050684,31]
[312663188,1706141493667,-500.0,0.00050684,31]
[312663189,1706141493677,-539.3,0.00050684,31]
[312663190,1706141493686,-500.0,0.00050684,31]
[312663191,1706141493695,-500.0,0.00050684,31]
[312663192,1706141493705,-500.0,0.00050684,31]
[312663193,1706141493714,-500.0,0.00050684,31]
[312663194,1706141493723,-355.75409332,0.00050684,31]
[312663195,1706141493733,-500.0,0.00050684,31]
[312663196,1706141493742,-500.0,0.00050684,31]
[312663197,1706141493751,-500.0,0.00050684,31]
[312663198,1706141493760,-557.24,0.00050684,31]
[312663199,1706141493770,-500.0,0.00050684,31]
[312663200,1706141493779,-500.0,0.00050684,31]
[312663201,1706141493789,-500.0,0.00050684,31]
[312663202,1706141493798,-500.0,0.00050684,31]
[312663203,1706141493807,-500.0,0.00050684,31]
[312663204,1706141493816,-500.0,0.00050684,31]
[312663205,1706141493826,-500.0,0.00050684,31]
[312663206,1706141493835,-500.0,0.00050684,31]
[312663207,1706141493845,-500.0,0.00050684,31]
[312663208,1706141493854,-500.0,0.00050684,31]
[312663209,1706141493863,-500.0,0.00050684,31]
[312663210,1706141493872,-596.67,0.00050684,31]
[312663211,1706141493881,-500.0,0.00050684,31]
[312663212,1706141493891,-500.0,0.00050684,31]
[312663213,1706141493900,-500.0,0.00050684,31]
[312663214,1706141493909,-500.0,0.00050684,31]
[312663215,1706141493918,-500.0,0.00050684,31]
[312663216,1706141493930,-500.0,0.00050684,31]
[312663217,1706141493939,-334.94855582,0.00050684,10]
[312663218,1706141493949,-650.62,0.00050684,31]
[312663219,1706141493958,-530.57,0.00050684,31]
[312663220,1706141493967,-590.77,0.00050684,31]
[312663221,1706141493977,-500.0,0.00050684,31]
[312663222,1706141493987,-500.0,0.00050684,31]
[312663223,1706141493996,-500.0,0.00050684,31]
[312663224,1706141494006,-500.0,0.00050684,31]
[312663225,1706141494015,-500.0,0.00050684,31]
[312663226,1706141494025,-500.0,0.00050684,31]
[312663227,1706141494035,-529.72,0.00050684,31]
[312663228,1706141494044,-500.0,0.00050684,31]
[312663229,1706141494054,-537.66,0.00050684,31]
[312663230,1706141494064,-500.0,0.00050684,31]
[312663231,1706141494075,-500.0,0.00050684,31]
[312663232,1706141494084,-668.66,0.00050684,31]
[312663233,1706141494094,-500.0,0.00050684,31]
[312663234,1706141494103,-500.0,0.00050684,31]
[312663235,1706141494112,-500.0,0.00050684,31]
[312663236,1706141494121,-500.0,0.00050684,31]
[312663237,1706141494130,-992.14,0.00050684,120]
[312663238,1706141494140,-500.0,0.00050684,31]
[312663239,1706141494149,-500.0,0.00050684,31]
[312663240,1706141494159,-500.0,0.00050684,31]
[312663241,1706141494168,-502.97,0.00050684,31]
[312663242,1706141494177,-500.0,0.00050684,31]
[312663243,1706141494186,-500.0,0.00050684,31]
[312663244,1706141494195,-500.0,0.00050684,31]
[312663245,1706141494204,-500.0,0.00050684,31]
[312663246,1706141494214,-500.0,0.00050684,31]
[312663247,1706141494223,-500.0,0.00050684,31]
[312663248,1706141494234,-500.0,0.00050684,31]
[312663249,1706141494244,-500.0,0.00050684,31]
[312663250,1706141494254,-500.0,0.00050684,31]
[312663251,1706141494264,-500.0,0.00050684,31]
[312663252,1706141494275,-626.76,0.00050684,31]
[312663253,1706141494284,-500.0,0.00050684,31]
[312663254,1706141494295,-524.2,0.00050684,31]
[312663255,1706141494305,-500.0,0.00050684,31]
[312663256,1706141494314,-500.0,0.00050684,31]
[312663257,1706141494324,-500.0,0.00050684,31]
[312663258,1706141494334,-500.0,0.00050684,31]
[312663259,1706141494343,-500.0,0.00050684,31]
[312663260,1706141494353,-500.0,0.00050684,31]
[312663261,1706141494362,-697.72,0.00050684,2]
[312663262,1706141494372,-500.0,0.00050684,31]
[312663263,1706141494382,-500.0,0.00050684,31]
[312663264,1706141494391,-500.0,0.00050684,31]
[312663265,1706141494401,-500.0,0.00050684,31]
[312663266,1706141494410,-521.763166,0.00050684,31]
[312663267,1706141494420,-502.99,0.00050684,31]
[312663268,1706141494430,-500.0,0.00050684,31]
[312663269,1706141494440,-500.0,0.00050684,31]
[312663270,1706141494449,-500.0,0.00050684,31]
[312663271,1706141494460,-500.0,0.00050684,31]
[312663272,1706141494470,-500.0,0.00050684,31]
[312663273,1706141494479,-500.0,0.00050684,31]
[312663274,1706141494488,-500.0,0.00050684,31]
[312663275,1706141494497,-1084.63,0.00050684,31]
[312663276,1706141494506,-500.0,0.00050684,31]
[312663277,1706141494516,-500.0,0.00050684,31]
[312663278,1706141494526,-500.0,0.00050684,31]
[312663279,1706141494535,-500.0,0.00050684,31]
[312663280,1706141494544,-500.0,0.00050684,31]
[312663281,1706141494555,-500.0,0.00050684,31]
[312663282,1706141494565,-500.0,0.00050684,31]
[312663283,1706141494575,-500.0,0.00050684,31]
[312663284,1706141494585,-500.0,0.00050684,31]
[312663285,1706141494594,-500.0,0.00050684,31]
[312663286,1706141494603,-500.0,0.00050684,31]
[312663287,1706141494612,-500.0,0.00050684,31]
[312663288,1706141494622,-380.99675753,0.00050684,31]
[312663289,1706141494631,-500.0,0.00050684,31]
[312663290,1706141494640,-500.0,0.00050684,31]
[312663291,1706141494649,-500.0,0.00050684,60]
[312663292,1706141494659,-500.0,0.00050684,31]
[312663293,1706141494668,-500.0,0.00050684,31]
[312663294,1706141494678,-500.0,0.00050684,31]
[312663295,1706141494687,-563.82,0.00050684,31]
[312663296,1706141494696,-500.0,0.00050684,31]
[312663297,1706141494706,-500.0,0.00050684,31]
[312663298,1706141494714,-500.0,0.00050684,31]
[312663299,1706141494724,-1246.63,0.00050684,7]
[312663300,1706141494733,-164.31123471,0.00050684,31]
[312663301,1706141494742,-500.0,0.00050684,31]
[312663302,1706141494751,-500.0,0.00050684,31]
[312663303,1706141494760,-669.25,0.00050684,20]
[312663304,1706141494769,-500.0,0.00050684,31]
[312663305,1706141494778,-500.0,0.00050684,31]
[312663306,1706141494788,-500.0,0.00050684,31]
[312663307,1706141494798,-500.0,0.00050684,31]
[312663308,1706141494806,-500.0,0.00050684,31]
[312663309,1706141494815,-304.36234173,0.00050684,31]
[312663310,1706141494825,-500.0,0.00050684,31]
[312663311,1706141494834,-500.0,0.00050684,31]
[312663312,1706141494843,-500.0,0.00050684,31]
[312663313,1706141494852,-303.26503549,0.00050684,31]
[312663314,1706141494861,-500.0,0.00050684,31]
[312663315,1706141494871,-500.0,0.00050684,31]
[312663316,1706141494880,-500.0,0.00050684,31]
[312663317,1706141494889,-436.63998636,0.00050684,31]
[312663318,1706141494898,-500.0,0.00050684,31]
[312663319,1706141494907,-500.0,0.00050684,31]
[312663320,1706141494917,-500.0,0.00050684,31]
[312663321,1706141494927,-500.0,0.00050684,31]
[312663322,1706141494936,-500.0,0.00050684,31]
[312663323,1706141494945,-500.0,0.00050684,31]
[312663324,1706141494954,-523.88,0.00050684,31]
[312663325,1706141494962,-500.0,0.00050684,31]
[312663326,1706141494971,-500.0,0.00050684,31]
[312663327,1706141494980,-500.0,0.00050684,31]
[312663328,1706141494989,-500.0,0.00050684,14]
[312663329,1706141494999,-500.0,0.00050684,31]
[312663330,1706141495008,-500.0,0.00050684,31]
[312663331,1706141495017,-500.0,0.00050684,31]
[312663332,1706141495026,-495.0,0.00050684,31]
[312663333,1706141495035,-1233.91,0.00050684,7]
[312663334,1706141495045,-1157.14,0.00050684,31]
[312663335,1706141495054,-526.57,0.00050684,31]
[312663336,1706141495063,-500.0,0.00050684,31]
[312663337,1706141495074,-500.0,0.00050684,31]
[312663338,1706141495084,-500.0,0.00050684,31]
[312663339,1706141495094,-500.0,0.00050684,31]
[312663340,1706141495104,-500.0,0.00050684,31]
[312663341,1706141495113,-500.0,0.00050684,31]
[312663342,1706141495123,-500.0,0.00050684,31]
[312663343,1706141495133,-594.98,0.00050684,31]
[312663344,1706141495143,-500.0,0.00050684,31]
[312663345,1706141495152,-4118.15,0.00050684,15]
[312663346,1706141495162,-500.0,0.00050684,31]
[312663347,1706141495172,-500.0,0.00050684,31]
[312663348,1706141495181,-500.0,0.00050684,31]
[312663349,1706141495190,-500.0,0.00050684,31]
[312663350,1706141495199,-500.0,0.00050684,31]
[312663351,1706141495208,-621.48,0.00050684,31]
[312663352,1706141495217,-500.0,0.00050684,31]
[312663353,1706141495226,-500.0,0.00050684,31]
[312663354,1706141495236,-1968.51,0.00050684,31]
[312663355,1706141495246,-500.0,0.00050684,31]
[312663356,1706141495255,-500.0,0.00050684,31]
[312663357,1706141495264,-500.0,0.00050684,31]
[312663358,1706141495274,-500.0,0.00050684,31]
[312663359,1706141495283,-500.0,0.00050684,31]
[312663360,1706141495298,-500.0,0.00050684,31]
[312663361,1706141495308,-500.0,0.00050684,31]
[312663362,1706141495318,-937.73,0.00050684,2]
[312663363,1706141495330,-500.0,0.00050684,31]
[312663364,1706141495339,-500.0,0.00050684,31]
[312663365,1706141495349,-500.0,0.00050684,31]
[312663366,1706141495359,-500.0,0.00050684,31]
[312663367,1706141495370,-4141.1,0.00050684,31]
[312663368,1706141495381,-500.0,0.00050684,31]
[312663369,1706141495392,-500.0,0.00050684,31]
[312663370,1706141495402,-500.0,0.00050684,31]
[312663371,1706141495414,-500.0,0.00050684,31]
[312663372,1706141495425,-500.0,0.00050684,31]
[312663373,1706141495436,-500.0,0.00050684,31]
[312663374,1706141495447,-500.0,0.00050684,31]
[312663375,1706141495457,-500.0,0.00050684,31]
[312663376,1706141495468,-500.0,0.00050684,31]
[312663377,1706141495478,-500.0,0.00050684,31]
[312663378,1706141495488,-500.0,0.00050684,31]
[312663379,1706141495498,-728.06,0.00050684,31]
[312663380,1706141495510,-250.1731343,0.00050684,31]
[312663381,1706141495520,-500.0,0.00050684,31]
[312663382,1706141495532,-500.0,0.00050684,31]
[312663383,1706141495543,-973.03,0.00050684,2]
[312663384,1706141495554,-500.0,0.00050684,31]
[312663385,1706141495564,-500.0,0.00050684,31]
[312663386,1706141495580,-500.0,0.00050684,31]
[312663387,1706141495590,-500.0,0.00050684,31]
[312663388,1706141495600,-500.0,0.00050684,31]
[312663389,1706141495612,-500.0,0.00050684,31]
[312663390,1706141495621,-1697.01,0.00050684,31]
[312663391,1706141495631,-500.0,0.00050684,31]
[312663392,1706141495641,-500.0,0.00050684,31]
[312663393,1706141495650,-500.0,0.00050684,31]
[312663394,1706141495659,-556.66,0.00050684,31]
[312663395,1706141495669,-500.0,0.00050684,31]
[312663396,1706141495679,-500.0,0.00050684,31]
[312663397,1706141495689,-681.8,0.00050684,31]
[312663398,1706141495698,-797.85,0.00050684,31]
[312663399,1706141495708,-500.0,0.00050684,31]
[312663400,1706141495718,-508.04,0.00050684,31]
[312663401,1706141495727,-500.0,0.00050684,31]
[312663402,1706141495737,-500.0,0.00050684,31]
[312663403,1706141495747,-500.0,0.00050684,31]
[312663404,1706141495757,-659.17,0.00050684,31]
[312663405,1706141495767,-500.0,0.00050684,31]
[312663406,1706141495777,-514.92,0.00050684,31]
[312663407,1706141495787,-520.3,0.00050684,31]
[312663408,1706141495797,-717.84,0.00050684,31]
[312663409,1706141495807,-1187.72,0.00050684,31]
[312663410,1706141495818,-500.0,0.00050684,31]
[312663411,1706141495832,-563.62,0.00050684,31]
[312663412,1706141495842,-500.0,0.00050684,31]
[312663413,1706141495852,-500.0,0.00050684,31]
[312663414,1706141495862,-203.82,0.00050684,31]
[312663415,1706141495871,-500.0,0.00050684,31]
[312663416,1706141495881,-1119.03,0.00050684,2]
[312663417,1706141495890,-1126.94,0.00050684,31]
[312663418,1706141495899,-551.67,0.00050684,31]
[312663419,1706141495908,-1035.65,0.00050684,31]
[312663420,1706141495918,-500.0,0.00050684,31]
[312663421,1706141495927,-738.6,0.00050684,31]
[312663422,1706141495936,-500.0,0.00050684,31]
[312663423,1706141495946,-1041.4,0.00050684,31]
[312663424,1706141495955,-500.0,0.00050684,31]
[312663425,1706141495964,-665.87,0.00050684,31]
[312663426,1706141495974,-500.0,0.00050684,31]
[312663427,1706141495983,-500.0,0.00050684,31]
[312663428,1706141495992,-511.53,0.00050684,31]
[312663429,1706141496001,-531.79,0.00050684,31]
[312663430,1706141496010,-693.29,0.00050684,31]
[312663431,1706141496020,-1258.54,0.00050684,31]
[312663432,1706141496029,-569.14,0.00050684,31]
[312663433,1706141496038,-500.0,0.00050684,31]
[312663434,1706141496047,-500.0,0.00050684,31]
[312663435,1706141496056,-500.0,0.00050684,31]
[312663436,1706141496065,-500.0,0.00050684,31]
[312663437,1706141496076,-523.57,0.00050684,31]
[312663438,1706141496086,-500.0,0.00050684,31]
[312663439,1706141496095,-3674.77,0.00050684,31]
[312663440,1706141496104,-3124.04,0.00050684,31]
[312663441,1706141496114,-1845.53,0.00050684,31]
[312663442,1706141496123,-500.0,0.00050684,31]
[312663443,1706141496132,-698.55,0.00050684,31]
[312663444,1706141496142,-500.0,0.00050684,31]
[312663445,1706141496150,-500.0,0.00050684,31]
[312663446,1706141496159,-3836.74,0.00050684,5]
[312663447,1706141496169,-500.0,0.00050684,31]
[312663448,1706141496178,-1206.46,0.00050684,31]
[312663449,1706141496187,-500.0,0.00050684,31]
[312663450,1706141496197,-500.0,0.00050684,31]
[312663451,1706141496206,-1295.76,0.00050684,31]
[312663452,1706141496215,-500.0,0.00050684,31]
[312663453,1706141496224,-500.0,0.00050684,31]
[312663454,1706141496233,-766.32,0.00050684,31]
[312663455,1706141496243,-500.0,0.00050684,31]
[312663456,1706141496252,-944.79,0.00050684,31]
[312663457,1706141496261,-585.71,0.00050684,31]
[312663458,1706141496270,-5283.49,0.00050684,5]
[312663459,1706141496282,-500.0,0.00050684,31]
[312663460,1706141496291,-500.0,0.00050684,31]
[312663461,1706141496301,-500.0,0.00050684,31]
[312663462,1706141496310,-718.1,0.00050684,31]
[312663463,1706141496321,-966.39,0.00050684,31]
[312663464,1706141496330,-1006.46,0.00050684,31]
[312663465,1706141496340,-422.22499711,0.00050684,31]
[312663466,1706141496349,-517.29,0.00050684,31]
[312663467,1706141496546,-8715.7,0.00050684,31]
[312663468,1706141496556,-567.82,0.00050684,31]
[312663469,1706141496567,-608.48,0.00050684,31]
[312663470,1706141496581,-500.0,0.00050684,31]
[312663471,1706141496590,-500.0,0.00050684,31]
[312663472,1706141496600,-500.0,0.00050684,31]
[312663473,1706141496609,-5784.02,0.00050684,31]
[312663474,1706141496618,-500.0,0.00050684,31]
[312663475,1706141496628,-672.35,0.00050684,31]
[312663476,1706141496638,-719.02,0.00050684,31]
[312663477,1706141496647,-660.52,0.00050684,31]
[312663478,1706141496656,-571.27,0.00050684,31]
[312663479,1706141496666,-500.0,0.00050684,31]
[312663480,1706141496675,-500.0,0.00050684,31]
[312663481,1706141496685,-681.13,0.00050684,31]
[312663482,1706141496694,-500.0,0.00050684,31]
[312663483,1706141496703,-500.0,0.00050684,31]
[312663484,1706141496712,-500.0,0.00050684,31]
[312663485,1706141496722,-687.75,0.00050684,31]
[312663486,1706141496731,-742.38,0.00050684,31]
[312663487,1706141496740,-2393.75,0.00050684,31]
[312663488,1706141496750,-500.0,0.00050684,31]
[312663489,1706141496759,-500.0,0.00050684,31]
[312663490,1706141496769,-5066.61,0.00050684,31]
[312663491,1706141496778,-500.0,0.00050684,31]
[312663492,1706141496787,-500.0,0.00050684,31]
[312663493,1706141496797,-572.67,0.00050684,31]
[312663494,1706141496806,-500.0,0.00050684,31]
[312663495,1706141496816,-541.99067542,0.00050684,31]
[312663496,1706141496827,-2453.54,0.00050684,31]
[312663497,1706141496836,-500.0,0.00050684,31]
[312663498,1706141496846,-2701.77,0.00050684,31]
[312663499,1706141496855,-500.0,0.00050684,31]
[312663500,1706141496864,-500.0,0.00050684,31]
[312663501,1706141496874,-580.27,0.00050684,31]
[312663502,1706141496883,-584.5,0.00050684,31]
[312663503,1706141496892,-500.0,0.00050684,31]
[312663504,1706141496902,-500.0,0.00050684,31]
[312663505,1706141496911,-1141.79,0.00050684,31]
[312663506,1706141496921,-1360.18,0.00050684,31]
[312663507,1706141496930,-1000.0,0.00050684,2]
[312663508,1706141496939,-693.55,0.00050684,31]
[312663509,1706141496948,-543.89,0.00050684,31]
[312663510,1706141496958,-683.16,0.00050684,31]
[312663511,1706141496967,-500.0,0.00050684,31]
[312663512,1706141496976,-500.0,0.00050684,31]
[312663513,1706141496985,-500.0,0.00050684,31]
[312663514,1706141496995,-500.0,0.00050684,31]
[312663515,1706141497004,-835.92,0.00050684,31]
[312663516,1706141497014,-608.94,0.00050684,31]
[312663517,1706141497024,-1468.94,0.00050684,31]
[312663518,1706141497033,-578.45,0.00050684,31]
[312663519,1706141497043,-500.0,0.00050684,31]
[312663520,1706141497052,-500.0,0.00050684,31]
[312663521,1706141497061,-552.79,0.00050684,31]
[312663522,1706141497071,-706.67,0.00050684,31]
[312663523,1706141497081,-2066.55,0.00050684,31]
[312663524,1706141497090,-540.87,0.00050684,31]
[312663525,1706141497099,-582.15,0.00050684,31]
[312663526,1706141497108,-500.0,0.00050684,31]
[312663527,1706141497118,-500.0,0.00050684,31]
[312663528,1706141497127,-639.06,0.00050684,31]
[312663529,1706141497137,-500.0,0.00050684,31]
[312663530,1706141497147,-500.0,0.00050684,31]
[312663531,1706141497155,-740.88,0.00050684,31]
[312663532,1706141497165,-700.44,0.00050684,31]
[312663533,1706141497174,-500.0,0.00050684,31]
[312663534,1706141497183,-500.0,0.00050684,31]
[312663535,1706141497192,-500.0,0.00050684,31]
[312663536,1706141497201,-537.04,0.00050684,31]
[312663537,1706141497211,-751.1,0.00050684,31]
[312663538,1706141497219,-500.0,0.00050684,31]
[312663539,1706141497230,-677.43,0.00050684,31]
[312663540,1706141497239,-500.0,0.00050684,31]
[312663541,1706141497248,-2280.94,0.00050684,31]
[312663542,1706141497260,-500.0,0.00050684,31]
[312663543,1706141497269,-500.0,0.00050684,31]
[312663544,1706141497281,-500.0,0.00050684,31]
[312663545,1706141497291,-547.24,0.00050684,31]
[312663546,1706141497300,-500.0,0.00050684,31]
[312663547,1706141497309,-500.0,0.00050684,31]
[312663548,1706141497321,-500.0,0.00050684,31]
[312663549,1706141497330,-1060.9,0.00050684,31]
[312663550,1706141497339,-581.01,0.00050684,31]
[312663551,1706141497348,-500.0,0.00050684,31]
[312663552,1706141497358,-500.0,0.00050684,31]
[312663553,1706141497368,-537.1,0.00050684,31]
[312663554,1706141497378,-500.0,0.00050684,31]
[312663555,1706141497387,-778.86,0.00050684,31]
[312663556,1706141497396,-857.21,0.00050684,31]
[312663557,1706141497405,-500.0,0.00050684,31]
[312663558,1706141497414,-1735.79,0.00050684,31]
[312663559,1706141497423,-500.0,0.00050684,31]
[312663560,1706141497432,-500.0,0.00050684,31]
[312663561,1706141497442,-608.69,0.00050684,31]
[312663562,1706141497451,-500.0,0.00050684,31]
[312663563,1706141497460,-606.25,0.00050684,31]
[312663564,1706141497469,-500.0,0.00050684,31]
[312663565,1706141497478,-500.0,0.00050684,31]
[312663566,1706141497487,-712.54,0.00050684,31]
[312663567,1706141497496,-645.15,0.00050684,31]
[312663568,1706141497505,-1073.61,0.00050684,31]
[312663569,1706141497514,-660.57,0.00050684,31]
[312663570,1706141497524,-1320.68,0.00050684,31]
[312663571,1706141497533,-655.7,0.00050684,31]
[312663572,1706141497543,-992.0,0.00050684,31]
[312663573,1706141497553,-4966.08,0.00050684,31]
[312663574,1706141497562,-500.0,0.00050684,31]
[312663575,1706141497572,-1315.35,0.00050684,31]
[312663576,1706141497581,-500.0,0.00050684,31]
[312663577,1706141497590,-500.0,0.00050684,31]
[312663578,1706141497600,-796.46,0.00050684,31]
[312663579,1706141497609,-500.0,0.00050684,31]
[312663580,1706141497618,-500.0,0.00050684,31]
[312663581,1706141497628,-500.0,0.00050684,31]
[312663582,1706141497637,-3061.04,0.00050684,31]
[312663583,1706141497646,-564.19,0.00050684,31]
[312663584,1706141497655,-860.59,0.00050684,31]
[312663585,1706141497665,-500.0,0.00050684,31]
[312663586,1706141497674,-553.53,0.00050684,31]
[312663587,1706141497683,-500.0,0.00050684,31]
[312663588,1706141497692,-500.0,0.00050684,31]
[312663589,1706141497701,-2426.6,0.00050684,31]
[312663590,1706141497711,-500.0,0.00050684,31]
[312663591,1706141497720,-547.26,0.00050684,31]
[312663592,1706141497730,-500.0,0.00050684,31]
[312663593,1706141497739,-1086.36,0.00050684,31]
[312663594,1706141497748,-959.04,0.00050684,31]
[312663595,1706141497757,-649.59,0.00050684,31]
[312663596,1706141497767,-500.0,0.00050684,31]
[312663597,1706141497776,-703.22,0.00050684,31]
[312663598,1706141497785,-600.26,0.00050684,31]
[312663599,1706141497795,-740.74,0.00050684,31]
[312663600,1706141497804,-787.85,0.00050684,31]
[312663601,1706141497814,-500.0,0.00050684,31]
[312663602,1706141497832,-730.54,0.00050684,31]
[312663603,1706141497854,-765.5,0.00050684,31]
[312663604,1706141497871,-500.0,0.00050684,31]
[312663605,1706141497892,-500.0,0.00050684,31]
[312663606,1706141497909,-599.29,0.00050684,31]
[312663607,1706141497928,-500.0,0.00050684,31]
[312663608,1706141497946,-737.72,0.00050684,31]
[312663609,1706141497964,-500.55,0.00050684,31]
[312663610,1706141497982,-500.0,0.00050684,31]
[312663611,1706141497999,-847.8,0.00050684,31]
[312663612,1706141498021,-539.53,0.00050684,31]
[312663613,1706141498039,-500.0,0.00050684,31]
[312663614,1706141498051,-501.79,0.00050684,31]
[312663615,1706141498069,-500.0,0.00050684,31]
[312663616,1706141498084,-714.81,0.00050684,31]
[312663617,1706141498100,-560.58,0.00050684,31]
[312663618,1706141498115,-765.11,0.00050684,31]
[312663619,1706141498131,-500.0,0.00050684,31]